[Event "Early-Titled-Tuesday-Blitz-February-27-2024"]
[Site "Chess.com"]
[Date "2024.02.27"]
[Round "3"]
[White "AsaHoffmann"]
[Black "bolwin"]
[Result "0-1"]
[WhiteElo "2461"]
[BlackElo "2265"]
[TimeControl "180+1"]
[EndTime "8:26:55 PST"]
[Termination "bolwin won by resignation"]

1. d4 {[%clk 0:02:44.7]} 1... Nf6 {[%clk 0:03:00.9]} 2. Bg5 {[%clk 0:02:39.3]}
2... c5 {[%clk 0:03:01.8]} 3. d5 {[%clk 0:02:38.7]} 3... d6 {[%clk 0:02:59.6]}
4. Nc3 {[%clk 0:02:38.3]} 4... a6 {[%clk 0:02:55.9]} 5. a4 {[%clk 0:02:37.8]}
5... e5 {[%clk 0:02:55.5]} 6. dxe6 {[%clk 0:02:34.6]} 6... fxe6 {[%clk
0:02:55.1]} 7. e4 {[%clk 0:02:34.3]} 7... Be7 {[%clk 0:02:54.6]} 8. Nf3 {[%clk
0:02:31.5]} 8... Nc6 {[%clk 0:02:54.9]} 9. Be2 {[%clk 0:02:28.7]} 9... O-O
{[%clk 0:02:54.5]} 10. O-O {[%clk 0:02:28.3]} 10... d5 {[%clk 0:02:54.9]} 11.
Bxf6 {[%clk 0:02:18.9]} 11... Bxf6 {[%clk 0:02:49.2]} 12. exd5 {[%clk
0:02:18.8]} 12... exd5 {[%clk 0:02:40.5]} 13. Qxd5+ {[%clk 0:02:14.8]} 13...
Qxd5 {[%clk 0:02:39.8]} 14. Nxd5 {[%clk 0:02:14.5]} 14... Bxb2 {[%clk
0:02:40.7]} 15. Rab1 {[%clk 0:02:12.9]} 15... Nd4 {[%clk 0:02:03.9]} 16. Rxb2
{[%clk 0:02:03.3]} 16... Nxe2+ {[%clk 0:02:03.1]} 17. Kh1 {[%clk 0:02:03.3]}
17... Bg4 {[%clk 0:01:59]} 18. Ne5 {[%clk 0:01:57.1]} 18... Bf5 {[%clk
0:01:50.3]} 19. Rxb7 {[%clk 0:01:39.1]} 19... Bxc2 {[%clk 0:01:44.5]} 20. Rc7
{[%clk 0:01:35.1]} 20... Bxa4 {[%clk 0:01:39]} 21. Rxc5 {[%clk 0:01:30.6]} 21...
Bb5 {[%clk 0:01:37.3]} 22. f3 {[%clk 0:01:15.5]} 22... Ng3+ {[%clk 0:01:35]} 23.
hxg3 {[%clk 0:01:15.2]} 23... Bxf1 {[%clk 0:01:35.9]} 24. Ra5 {[%clk 0:01:08.5]}
24... Rae8 {[%clk 0:01:28.5]} 25. f4 {[%clk 0:01:07.5]} 25... Rb8 {[%clk
0:01:18.2]} 26. Kh2 {[%clk 0:01:04.9]} 26... Rb5 {[%clk 0:01:13.9]} 27. Ra1
{[%clk 0:00:58.7]} 27... Rxd5 {[%clk 0:01:08.1]} 28. Rxf1 {[%clk 0:00:58.1]}
28... Rxe5 {[%clk 0:01:08.1]} 29. Ra1 {[%clk 0:00:55.9]} 29... Re6 {[%clk
0:01:05.7]} 30. Kh3 {[%clk 0:00:53.4]} 30... Ra8 {[%clk 0:01:05.5]} 31. Ra4
{[%clk 0:00:52.9]} 31... a5 {[%clk 0:01:04.9]} 32. f5 {[%clk 0:00:52.8]} 32...
Rb6 {[%clk 0:01:05.1]} 33. g4 {[%clk 0:00:52.3]} 33... Rb3+ {[%clk 0:01:04.4]}
34. Kh4 {[%clk 0:00:51.8]} 34... Rb4 {[%clk 0:01:04.7]} 35. Ra3 {[%clk
0:00:50.9]} 35... a4 {[%clk 0:01:04.9]} 36. Kh5 {[%clk 0:00:50.9]} 36... Rb3
{[%clk 0:01:04.8]} 37. Ra1 {[%clk 0:00:50.4]} 37... a3 {[%clk 0:01:05.1]} 38. g5
{[%clk 0:00:50.5]} 38... a2 {[%clk 0:01:03.3]} 39. g6 {[%clk 0:00:48.8]} 39...
hxg6+ {[%clk 0:01:02.7]} 40. fxg6 {[%clk 0:00:47.9]} 40... Rb1 {[%clk
0:01:02.2]} 0-1

[Event "Early-Titled-Tuesday-Blitz-February-27-2024"]
[Site "Chess.com"]
[Date "2024.02.27"]
[Round "3"]
[White "Natalya_Buksa"]
[Black "patzersame"]
[Result "1-0"]
[WhiteElo "2599"]
[BlackElo "2400"]
[TimeControl "180+1"]
[EndTime "8:27:02 PST"]
[Termination "Natalya_Buksa won by resignation"]

1. d4 {[%clk 0:03:00.9]} 1... d5 {[%clk 0:02:56.8]} 2. Nc3 {[%clk 0:03:01]} 2...
e6 {[%clk 0:02:54.5]} 3. Bf4 {[%clk 0:03:01.6]} 3... Bb4 {[%clk 0:02:50.9]} 4.
a3 {[%clk 0:03:01.3]} 4... Ba5 {[%clk 0:02:51.3]} 5. b4 {[%clk 0:03:01.2]} 5...
Bb6 {[%clk 0:02:50.9]} 6. e3 {[%clk 0:03:01.1]} 6... Nf6 {[%clk 0:02:46.9]} 7.
Nf3 {[%clk 0:02:58.4]} 7... O-O {[%clk 0:02:46.7]} 8. Ne5 {[%clk 0:02:57.9]}
8... a5 {[%clk 0:02:41.8]} 9. g4 {[%clk 0:02:55.9]} 9... axb4 {[%clk 0:02:41.1]}
10. axb4 {[%clk 0:02:56.8]} 10... Rxa1 {[%clk 0:02:41.5]} 11. Qxa1 {[%clk
0:02:57.1]} 11... Nc6 {[%clk 0:02:40.6]} 12. Nxc6 {[%clk 0:02:54.5]} 12... bxc6
{[%clk 0:02:40.5]} 13. g5 {[%clk 0:02:55.1]} 13... Ne4 {[%clk 0:02:39.9]} 14.
Nxe4 {[%clk 0:02:54.6]} 14... dxe4 {[%clk 0:02:40.8]} 15. c4 {[%clk 0:02:54.7]}
15... Bb7 {[%clk 0:01:40.5]} 16. c5 {[%clk 0:02:53]} 16... Qd5 {[%clk
0:01:40.7]} 17. cxb6 {[%clk 0:02:52.2]} 17... Ra8 {[%clk 0:01:41.4]} 18. Qc1
{[%clk 0:02:40.5]} 18... cxb6 {[%clk 0:01:34.3]} 19. Bc4 {[%clk 0:02:39.6]}
19... Qf5 {[%clk 0:01:34.3]} 20. Qd1 {[%clk 0:02:31.4]} 20... c5 {[%clk
0:01:28.9]} 21. dxc5 {[%clk 0:01:39.6]} 21... bxc5 {[%clk 0:01:29.8]} 22. b5
{[%clk 0:01:39.8]} 22... e5 {[%clk 0:01:24]} 23. Bg3 {[%clk 0:01:39.4]} 23...
Qxg5 {[%clk 0:01:24.2]} 24. O-O {[%clk 0:01:34.8]} 24... h5 {[%clk 0:01:16.6]}
25. h4 {[%clk 0:01:34.3]} 25... Qf5 {[%clk 0:01:13.2]} 26. Qd6 {[%clk
0:01:27.6]} 26... Re8 {[%clk 0:00:33.9]} 27. Rd1 {[%clk 0:01:27.1]} 27... Bc8
{[%clk 0:00:29.1]} 28. Be2 {[%clk 0:01:23]} 28... g5 {[%clk 0:00:23]} 29. Qc6
{[%clk 0:01:17.6]} 29... Re7 {[%clk 0:00:17.3]} 30. Rd8+ {[%clk 0:01:16.4]}
30... Kg7 {[%clk 0:00:16.2]} 31. Qxc8 {[%clk 0:01:16.6]} 31... Re6 {[%clk
0:00:13]} 32. Rg8+ {[%clk 0:01:12.8]} 32... Kf6 {[%clk 0:00:12.1]} 33. hxg5+
{[%clk 0:01:12.3]} 33... Qxg5 {[%clk 0:00:12.1]} 34. Qd8+ {[%clk 0:01:11.7]}
34... Re7 {[%clk 0:00:11.9]} 35. Qxe7+ {[%clk 0:01:10.9]} 35... Kxe7 {[%clk
0:00:11.6]} 36. Rxg5 {[%clk 0:01:11.8]} 1-0

[Event "Early-Titled-Tuesday-Blitz-February-27-2024"]
[Site "Chess.com"]
[Date "2024.02.27"]
[Round "3"]
[White "gm_rashid"]
[Black "FoggyMorning"]
[Result "0-1"]
[WhiteElo "2441"]
[BlackElo "2619"]
[TimeControl "180+1"]
[EndTime "8:27:03 PST"]
[Termination "FoggyMorning won by checkmate"]

1. e4 {[%clk 0:02:56.9]} 1... e6 {[%clk 0:02:59.4]} 2. d4 {[%clk 0:02:56.9]}
2... d5 {[%clk 0:03:00]} 3. exd5 {[%clk 0:02:57.8]} 3... exd5 {[%clk 0:03:00.9]}
4. Bd3 {[%clk 0:02:58.7]} 4... Bd6 {[%clk 0:03:00.7]} 5. Qf3 {[%clk 0:02:58.5]}
5... Ne7 {[%clk 0:02:59.6]} 6. Ne2 {[%clk 0:02:55.8]} 6... Nbc6 {[%clk
0:02:58.3]} 7. c3 {[%clk 0:02:55.5]} 7... Be6 {[%clk 0:02:57.1]} 8. Bf4 {[%clk
0:02:55.5]} 8... Qd7 {[%clk 0:02:49.7]} 9. Nd2 {[%clk 0:02:53.8]} 9... Ng6
{[%clk 0:02:21.5]} 10. Bxd6 {[%clk 0:02:46.9]} 10... Qxd6 {[%clk 0:02:22.4]} 11.
O-O-O {[%clk 0:02:45.8]} 11... O-O-O {[%clk 0:02:16.7]} 12. h4 {[%clk
0:02:44.6]} 12... h5 {[%clk 0:02:10.3]} 13. g3 {[%clk 0:02:04.2]} 13... Nce7
{[%clk 0:02:04.1]} 14. Kb1 {[%clk 0:02:01.7]} 14... Bg4 {[%clk 0:01:55.9]} 15.
Qe3 {[%clk 0:01:54.9]} 15... Rhe8 {[%clk 0:01:13.4]} 16. f3 {[%clk 0:01:49.3]}
16... Bf5 {[%clk 0:01:01.4]} 17. Bxf5+ {[%clk 0:01:46.5]} 17... Nxf5 {[%clk
0:01:02.3]} 18. Qf2 {[%clk 0:01:46.8]} 18... Rxe2 {[%clk 0:01:00.1]} 19. Qxe2
{[%clk 0:01:44.8]} 19... Nxg3 {[%clk 0:01:00.8]} 20. Qh2 {[%clk 0:01:36.7]}
20... Nxh1 {[%clk 0:01:00.8]} 21. Qxh1 {[%clk 0:01:37.6]} 21... Qf4 {[%clk
0:00:58.4]} 22. Qh3+ {[%clk 0:01:33]} 22... Kb8 {[%clk 0:00:57.9]} 23. Nb3
{[%clk 0:01:33.7]} 23... Qxh4 {[%clk 0:00:54.5]} 24. Qf5 {[%clk 0:01:31.5]}
24... Qf6 {[%clk 0:00:47]} 25. Qxh5 {[%clk 0:01:30.8]} 25... Nf4 {[%clk
0:00:41.3]} 26. Qg4 {[%clk 0:01:25.4]} 26... Qg6+ {[%clk 0:00:35.4]} 27. Kc1
{[%clk 0:01:23.4]} 27... Nd3+ {[%clk 0:00:24.1]} 28. Kd2 {[%clk 0:01:04.3]}
28... Qxg4 {[%clk 0:00:22]} 29. fxg4 {[%clk 0:01:03.8]} 29... Nxb2 {[%clk
0:00:22.9]} 30. Rf1 {[%clk 0:01:02.1]} 30... Nc4+ {[%clk 0:00:21.3]} 31. Kd3
{[%clk 0:01:01.3]} 31... f6 {[%clk 0:00:20.3]} 32. Nc5 {[%clk 0:01:00.7]} 32...
b6 {[%clk 0:00:19]} 33. Ne6 {[%clk 0:01:00.2]} 33... Rd7 {[%clk 0:00:18.6]} 34.
Nf8 {[%clk 0:00:59]} 34... Re7 {[%clk 0:00:17.9]} 35. Ng6 {[%clk 0:00:57.3]}
35... Re3+ {[%clk 0:00:17.8]} 36. Kc2 {[%clk 0:00:57.9]} 36... Re2+ {[%clk
0:00:18.4]} 37. Kd3 {[%clk 0:00:57.7]} 37... Rd2# {[%clk 0:00:18.3]} 0-1

[Event "Early-Titled-Tuesday-Blitz-February-27-2024"]
[Site "Chess.com"]
[Date "2024.02.27"]
[Round "3"]
[White "ChessSwole"]
[Black "Larina_Maria"]
[Result "1-0"]
[WhiteElo "2702"]
[BlackElo "2307"]
[TimeControl "180+1"]
[EndTime "8:27:09 PST"]
[Termination "ChessSwole won by checkmate"]

1. e4 {[%clk 0:03:00.9]} 1... c6 {[%clk 0:02:59.3]} 2. d4 {[%clk 0:03:00.4]}
2... d5 {[%clk 0:02:59.4]} 3. exd5 {[%clk 0:03:01.3]} 3... cxd5 {[%clk
0:02:59.6]} 4. Bd3 {[%clk 0:03:01.5]} 4... Nc6 {[%clk 0:02:59.2]} 5. c3 {[%clk
0:03:00.6]} 5... e5 {[%clk 0:02:59.5]} 6. dxe5 {[%clk 0:03:00]} 6... Nxe5 {[%clk
0:03:00.4]} 7. Bb5+ {[%clk 0:03:00]} 7... Nc6 {[%clk 0:02:59.3]} 8. Nf3 {[%clk
0:02:58.7]} 8... Bd6 {[%clk 0:02:58.9]} 9. O-O {[%clk 0:02:57.9]} 9... Ne7
{[%clk 0:02:58.7]} 10. h3 {[%clk 0:02:58]} 10... O-O {[%clk 0:02:58.5]} 11. Re1
{[%clk 0:02:57.4]} 11... a6 {[%clk 0:02:56.4]} 12. Bd3 {[%clk 0:02:51.9]} 12...
Re8 {[%clk 0:02:44.5]} 13. Nbd2 {[%clk 0:02:48.6]} 13... Ng6 {[%clk 0:02:36.1]}
14. Nb3 {[%clk 0:02:46.5]} 14... Nf4 {[%clk 0:02:32.5]} 15. Rxe8+ {[%clk
0:02:40.2]} 15... Qxe8 {[%clk 0:02:33.4]} 16. Bxf4 {[%clk 0:02:39.8]} 16... Bxf4
{[%clk 0:02:33]} 17. Qc2 {[%clk 0:02:39.9]} 17... g6 {[%clk 0:02:29.3]} 18. Re1
{[%clk 0:02:38.4]} 18... Qd8 {[%clk 0:02:27]} 19. Qe2 {[%clk 0:02:30.7]} 19...
Bd7 {[%clk 0:02:16.5]} 20. Nbd4 {[%clk 0:02:13.6]} 20... Qf6 {[%clk 0:02:05.5]}
21. Qd1 {[%clk 0:01:59.8]} 21... Bd6 {[%clk 0:02:00.6]} 22. Bc2 {[%clk
0:01:49.1]} 22... Rd8 {[%clk 0:01:41.5]} 23. Bb3 {[%clk 0:01:46.6]} 23... Nxd4
{[%clk 0:01:23.4]} 24. Nxd4 {[%clk 0:01:31.8]} 24... Qf4 {[%clk 0:01:16.9]} 25.
Nf3 {[%clk 0:01:31.8]} 25... Bc6 {[%clk 0:01:10.2]} 26. Bxd5 {[%clk 0:01:08.9]}
26... Bc7 {[%clk 0:01:04]} 27. c4 {[%clk 0:01:08.7]} 27... Bxd5 {[%clk
0:00:40.6]} 28. cxd5 {[%clk 0:01:09.6]} 28... Qf5 {[%clk 0:00:40.9]} 29. Qb3
{[%clk 0:00:52.7]} 29... Qxd5 {[%clk 0:00:26.6]} 30. Re8+ {[%clk 0:00:52.4]}
30... Kg7 {[%clk 0:00:26.9]} 31. Qc3+ {[%clk 0:00:52.3]} 31... f6 {[%clk
0:00:20.8]} 32. Qxc7+ {[%clk 0:00:51.5]} 32... Rd7 {[%clk 0:00:18.9]} 33. Re7+
{[%clk 0:00:51.5]} 33... Rxe7 {[%clk 0:00:18.3]} 34. Qxe7+ {[%clk 0:00:52.4]}
34... Kh6 {[%clk 0:00:18.7]} 35. Qf8+ {[%clk 0:00:49.3]} 35... Kh5 {[%clk
0:00:18.4]} 36. g4# {[%clk 0:00:49.7]} 1-0

[Event "Early-Titled-Tuesday-Blitz-February-27-2024"]
[Site "Chess.com"]
[Date "2024.02.27"]
[Round "3"]
[White "Brahianzevich"]
[Black "MANOJ_MISHRA123"]
[Result "1-0"]
[WhiteElo "2482"]
[BlackElo "2257"]
[TimeControl "180+1"]
[EndTime "8:27:10 PST"]
[Termination "Brahianzevich won by resignation"]

1. e4 {[%clk 0:02:59.6]} 1... c5 {[%clk 0:02:59.9]} 2. Nf3 {[%clk 0:02:59.3]}
2... d6 {[%clk 0:03:00.1]} 3. d4 {[%clk 0:02:59.1]} 3... cxd4 {[%clk 0:03:01]}
4. Nxd4 {[%clk 0:02:59.7]} 4... Nf6 {[%clk 0:03:01.7]} 5. Nc3 {[%clk 0:03:00.4]}
5... a6 {[%clk 0:03:00.4]} 6. Bg5 {[%clk 0:03:00.8]} 6... Nbd7 {[%clk
0:03:00.2]} 7. f4 {[%clk 0:03:01.1]} 7... h6 {[%clk 0:02:56.8]} 8. Bh4 {[%clk
0:03:00.8]} 8... e6 {[%clk 0:02:55.9]} 9. Qe2 {[%clk 0:03:00.7]} 9... Be7 {[%clk
0:02:55.9]} 10. O-O-O {[%clk 0:02:59.3]} 10... Qc7 {[%clk 0:02:50.4]} 11. g4
{[%clk 0:02:58.9]} 11... g5 {[%clk 0:02:46.7]} 12. fxg5 {[%clk 0:02:58]} 12...
hxg5 {[%clk 0:02:46.4]} 13. Bxg5 {[%clk 0:02:52.2]} 13... b5 {[%clk 0:02:44.7]}
14. Bg2 {[%clk 0:02:42.4]} 14... b4 {[%clk 0:02:39.3]} 15. e5 {[%clk 0:02:16.3]}
15... bxc3 {[%clk 0:02:36.8]} 16. exf6 {[%clk 0:02:11.9]} 16... Qa5 {[%clk
0:01:37.9]} 17. fxe7 {[%clk 0:01:47.5]} 17... Qxg5+ {[%clk 0:01:24.1]} 18. Kb1
{[%clk 0:01:47.7]} 18... Rb8 {[%clk 0:01:22.1]} 19. b3 {[%clk 0:00:51.1]} 19...
Qa5 {[%clk 0:01:10.2]} 20. Qe3 {[%clk 0:00:51.4]} 20... Ne5 {[%clk 0:01:01.9]}
21. Nc6 {[%clk 0:00:51.1]} 21... Nxc6 {[%clk 0:00:59]} 22. Bxc6+ {[%clk
0:00:52]} 22... Kxe7 {[%clk 0:00:59.4]} 23. Rhf1 {[%clk 0:00:34.3]} 23... Rxh2
{[%clk 0:00:49.5]} 24. Qf4 {[%clk 0:00:32.6]} 24... Qa3 {[%clk 0:00:29.8]} 25.
Qf6+ {[%clk 0:00:29.1]} 1-0

[Event "Early-Titled-Tuesday-Blitz-February-27-2024"]
[Site "Chess.com"]
[Date "2024.02.27"]
[Round "3"]
[White "mr_gustavo"]
[Black "Njal28"]
[Result "0-1"]
[WhiteElo "2729"]
[BlackElo "3006"]
[TimeControl "180+1"]
[EndTime "8:27:14 PST"]
[Termination "Njal28 won by resignation"]

1. e4 {[%clk 0:02:55.7]} 1... e5 {[%clk 0:03:00.1]} 2. Nf3 {[%clk 0:02:54.7]}
2... Nc6 {[%clk 0:03:00.8]} 3. Bb5 {[%clk 0:02:54.9]} 3... a6 {[%clk 0:03:00.9]}
4. Ba4 {[%clk 0:02:54.9]} 4... Nf6 {[%clk 0:03:01.6]} 5. O-O {[%clk 0:02:54.9]}
5... d6 {[%clk 0:03:02.3]} 6. c3 {[%clk 0:02:53.3]} 6... Bd7 {[%clk 0:03:02.1]}
7. Bc2 {[%clk 0:02:53.2]} 7... g6 {[%clk 0:03:02]} 8. d4 {[%clk 0:02:53.6]} 8...
Bg7 {[%clk 0:03:02.4]} 9. h3 {[%clk 0:02:53.7]} 9... O-O {[%clk 0:03:02]} 10.
Re1 {[%clk 0:02:54.4]} 10... Nh5 {[%clk 0:03:01.4]} 11. Be3 {[%clk 0:02:48]}
11... Qe8 {[%clk 0:03:00.4]} 12. Nbd2 {[%clk 0:02:47.2]} 12... Kh8 {[%clk
0:02:59.9]} 13. dxe5 {[%clk 0:02:43.4]} 13... dxe5 {[%clk 0:02:57.8]} 14. Bc5
{[%clk 0:02:43.2]} 14... Rg8 {[%clk 0:02:58]} 15. Bb3 {[%clk 0:02:39.3]} 15...
b6 {[%clk 0:02:53.3]} 16. Be3 {[%clk 0:02:38.9]} 16... Rf8 {[%clk 0:02:49.2]}
17. Nc4 {[%clk 0:02:18.9]} 17... Rd8 {[%clk 0:02:10.2]} 18. Qc2 {[%clk
0:02:17.9]} 18... b5 {[%clk 0:01:48.2]} 19. Ncd2 {[%clk 0:02:15.7]} 19... Na5
{[%clk 0:01:48.2]} 20. Bc5 {[%clk 0:02:12]} 20... Rg8 {[%clk 0:01:46.4]} 21.
Rad1 {[%clk 0:02:09.4]} 21... Nf4 {[%clk 0:01:39.8]} 22. Be3 {[%clk 0:02:02.8]}
22... Nxb3 {[%clk 0:01:40.1]} 23. Nxb3 {[%clk 0:02:02.7]} 23... Ne6 {[%clk
0:01:40.6]} 24. Rd5 {[%clk 0:01:48.8]} 24... Bc6 {[%clk 0:01:36.7]} 25. Rxe5
{[%clk 0:01:39.3]} 25... f6 {[%clk 0:01:29.1]} 26. Rc5 {[%clk 0:01:31.6]} 26...
Nxc5 {[%clk 0:01:29.4]} 27. Nxc5 {[%clk 0:01:32.5]} 27... Qf7 {[%clk 0:01:22.5]}
28. Bd4 {[%clk 0:01:26.6]} 28... Rge8 {[%clk 0:01:19.9]} 29. b3 {[%clk
0:01:18.4]} 29... a5 {[%clk 0:01:18.7]} 30. e5 {[%clk 0:01:02]} 30... fxe5
{[%clk 0:01:15.8]} 31. Nxe5 {[%clk 0:01:01.4]} 31... Qd5 {[%clk 0:01:16.2]} 32.
f4 {[%clk 0:00:43.1]} 32... b4 {[%clk 0:01:11.5]} 33. Nxc6 {[%clk 0:00:36]}
33... Rxe1+ {[%clk 0:01:07.6]} 34. Kf2 {[%clk 0:00:33.3]} 34... Qxc6 {[%clk
0:00:41.2]} 35. Kxe1 {[%clk 0:00:32.8]} 35... Rxd4 {[%clk 0:00:23.2]} 0-1

[Event "Early-Titled-Tuesday-Blitz-February-27-2024"]
[Site "Chess.com"]
[Date "2024.02.27"]
[Round "3"]
[White "AttackSparrow"]
[Black "Licancabur"]
[Result "1-0"]
[WhiteElo "2640"]
[BlackElo "2453"]
[TimeControl "180+1"]
[EndTime "8:27:16 PST"]
[Termination "AttackSparrow won on time"]

1. Nf3 {[%clk 0:03:00.9]} 1... Nf6 {[%clk 0:02:58.6]} 2. b3 {[%clk 0:03:01.2]}
2... d5 {[%clk 0:02:50.7]} 3. Bb2 {[%clk 0:03:01.4]} 3... c5 {[%clk 0:02:50]} 4.
e3 {[%clk 0:03:01.8]} 4... Nc6 {[%clk 0:02:43.1]} 5. Bb5 {[%clk 0:03:01.3]} 5...
Bg4 {[%clk 0:02:40.1]} 6. h3 {[%clk 0:02:59.6]} 6... Bxf3 {[%clk 0:02:37.6]} 7.
Qxf3 {[%clk 0:03:00.5]} 7... e6 {[%clk 0:02:35.2]} 8. O-O {[%clk 0:02:41]} 8...
Be7 {[%clk 0:02:15.4]} 9. d4 {[%clk 0:02:24.9]} 9... cxd4 {[%clk 0:02:06.2]} 10.
exd4 {[%clk 0:02:25.8]} 10... O-O {[%clk 0:02:05]} 11. a3 {[%clk 0:02:24.6]}
11... Ne4 {[%clk 0:02:00.8]} 12. Bd3 {[%clk 0:02:23.2]} 12... Nf6 {[%clk
0:01:39.4]} 13. Nd2 {[%clk 0:02:16.8]} 13... Rc8 {[%clk 0:01:38]} 14. Rfe1
{[%clk 0:02:15.7]} 14... Qb6 {[%clk 0:01:34.1]} 15. Qe3 {[%clk 0:02:15.1]} 15...
Bd6 {[%clk 0:01:16.6]} 16. Nf3 {[%clk 0:02:14.2]} 16... Rfe8 {[%clk 0:01:07.3]}
17. Rab1 {[%clk 0:02:08.7]} 17... a6 {[%clk 0:01:05.4]} 18. c4 {[%clk 0:02:08]}
18... dxc4 {[%clk 0:01:00.5]} 19. bxc4 {[%clk 0:02:08.9]} 19... Qc7 {[%clk
0:00:54.2]} 20. Qe2 {[%clk 0:01:54.4]} 20... h6 {[%clk 0:00:46]} 21. Rbc1 {[%clk
0:01:24.3]} 21... Ne7 {[%clk 0:00:32]} 22. d5 {[%clk 0:01:13.1]} 22... Bf4
{[%clk 0:00:29.9]} 23. dxe6 {[%clk 0:01:06]} 23... fxe6 {[%clk 0:00:17.1]} 24.
Qxe6+ {[%clk 0:01:06.9]} 24... Kh8 {[%clk 0:00:17.1]} 25. Bxf6 {[%clk
0:00:57.1]} 25... Bxc1 {[%clk 0:00:13.8]} 26. Bxe7 {[%clk 0:00:53.3]} 26... Rxe7
{[%clk 0:00:12.6]} 27. Qxe7 {[%clk 0:00:54.2]} 27... Qxe7 {[%clk 0:00:08.2]} 28.
Rxe7 {[%clk 0:00:55.1]} 28... Bxa3 {[%clk 0:00:08.4]} 29. Rxb7 {[%clk
0:00:54.4]} 29... a5 {[%clk 0:00:06.7]} 30. Ra7 {[%clk 0:00:48.3]} 1-0

[Event "Early-Titled-Tuesday-Blitz-February-27-2024"]
[Site "Chess.com"]
[Date "2024.02.27"]
[Round "3"]
[White "BeardedNM"]
[Black "ElVital"]
[Result "1-0"]
[WhiteElo "2229"]
[BlackElo "2404"]
[TimeControl "180+1"]
[EndTime "8:27:22 PST"]
[Termination "BeardedNM won by resignation"]

1. e4 {[%clk 0:03:00.9]} 1... g6 {[%clk 0:02:58.1]} 2. d4 {[%clk 0:03:00.6]}
2... Bg7 {[%clk 0:02:58.4]} 3. Nc3 {[%clk 0:03:00.2]} 3... d6 {[%clk 0:02:58.9]}
4. Be3 {[%clk 0:02:59.9]} 4... a6 {[%clk 0:02:58.9]} 5. Nf3 {[%clk 0:02:58.7]}
5... b5 {[%clk 0:02:58.5]} 6. Bd3 {[%clk 0:02:57.7]} 6... Nf6 {[%clk 0:02:57.9]}
7. Qd2 {[%clk 0:02:52.4]} 7... Ng4 {[%clk 0:02:55.7]} 8. Bg5 {[%clk 0:02:51.9]}
8... h6 {[%clk 0:02:55.6]} 9. Bh4 {[%clk 0:02:51.9]} 9... g5 {[%clk 0:02:55.8]}
10. Bg3 {[%clk 0:02:52.2]} 10... Nf6 {[%clk 0:02:55.8]} 11. O-O {[%clk
0:02:36.5]} 11... Nh5 {[%clk 0:02:54.1]} 12. e5 {[%clk 0:02:24]} 12... d5 {[%clk
0:02:50.5]} 13. a4 {[%clk 0:02:14]} 13... b4 {[%clk 0:02:50.3]} 14. Nd1 {[%clk
0:01:57.3]} 14... a5 {[%clk 0:02:50.2]} 15. Ne3 {[%clk 0:01:46.1]} 15... e6
{[%clk 0:02:48.8]} 16. c3 {[%clk 0:01:29.4]} 16... bxc3 {[%clk 0:02:48.7]} 17.
bxc3 {[%clk 0:01:30.3]} 17... c5 {[%clk 0:02:46.8]} 18. Bb5+ {[%clk 0:01:03.7]}
18... Kf8 {[%clk 0:02:46.5]} 19. dxc5 {[%clk 0:00:58.7]} 19... Bb7 {[%clk
0:02:42.9]} 20. Nd4 {[%clk 0:00:51.7]} 20... Qc8 {[%clk 0:02:43.1]} 21. Ng4
{[%clk 0:00:24.3]} 21... Qxc5 {[%clk 0:02:40.1]} 22. f4 {[%clk 0:00:15.9]} 22...
Nxg3 {[%clk 0:02:21.3]} 23. hxg3 {[%clk 0:00:16.8]} 23... h5 {[%clk 0:02:21.5]}
24. Ne3 {[%clk 0:00:14.3]} 24... g4 {[%clk 0:02:08.4]} 25. Qf2 {[%clk
0:00:14.3]} 25... Qxc3 {[%clk 0:01:39.1]} 26. Rfd1 {[%clk 0:00:14.4]} 26... Qc7
{[%clk 0:01:25.4]} 27. Rac1 {[%clk 0:00:13.5]} 27... Qe7 {[%clk 0:01:25.6]} 28.
f5 {[%clk 0:00:12.9]} 28... Bxe5 {[%clk 0:01:23]} 29. fxe6 {[%clk 0:00:12.4]}
29... f6 {[%clk 0:01:23.5]} 30. Nef5 {[%clk 0:00:12.2]} 30... Bxd4 {[%clk
0:01:09.4]} 31. Rxd4 {[%clk 0:00:12.2]} 31... Qxe6 {[%clk 0:01:09.1]} 32. Re1
{[%clk 0:00:12.4]} 1-0

[Event "Early-Titled-Tuesday-Blitz-February-27-2024"]
[Site "Chess.com"]
[Date "2024.02.27"]
[Round "3"]
[White "dianamirza"]
[Black "jcmesafischer"]
[Result "0-1"]
[WhiteElo "1996"]
[BlackElo "2351"]
[TimeControl "180+1"]
[EndTime "8:27:23 PST"]
[Termination "jcmesafischer won by resignation"]

1. d4 {[%clk 0:03:00.9]} 1... Nf6 {[%clk 0:01:34.8]} 2. Nf3 {[%clk 0:02:57.2]}
2... d5 {[%clk 0:01:31.2]} 3. e3 {[%clk 0:02:56.5]} 3... e6 {[%clk 0:01:30]} 4.
Bd3 {[%clk 0:02:56.6]} 4... c5 {[%clk 0:01:29.9]} 5. b3 {[%clk 0:02:56.9]} 5...
Nc6 {[%clk 0:01:21.7]} 6. Bb2 {[%clk 0:02:56.5]} 6... cxd4 {[%clk 0:01:21.9]} 7.
exd4 {[%clk 0:02:56.1]} 7... Bd6 {[%clk 0:01:21.7]} 8. Nbd2 {[%clk 0:02:55.6]}
8... O-O {[%clk 0:01:21.7]} 9. Ne5 {[%clk 0:02:46]} 9... Qb6 {[%clk 0:01:18.5]}
10. Nxc6 {[%clk 0:02:16.5]} 10... bxc6 {[%clk 0:01:17.5]} 11. O-O {[%clk
0:02:16.4]} 11... a5 {[%clk 0:01:15.8]} 12. f4 {[%clk 0:02:14.7]} 12... a4
{[%clk 0:01:07.6]} 13. Rc1 {[%clk 0:01:55.1]} 13... axb3 {[%clk 0:01:04.9]} 14.
axb3 {[%clk 0:01:51.1]} 14... Ra2 {[%clk 0:01:05.2]} 15. Ba1 {[%clk 0:01:48.1]}
15... Bb7 {[%clk 0:00:47.2]} 16. c4 {[%clk 0:01:39.7]} 16... Rxa1 {[%clk
0:00:46.9]} 17. c5 {[%clk 0:01:33.8]} 17... Rxc1 {[%clk 0:00:46.3]} 18. Qxc1
{[%clk 0:01:34.7]} 18... Qb4 {[%clk 0:00:41.6]} 19. cxd6 {[%clk 0:01:27.2]}
19... Qxd4+ {[%clk 0:00:41.6]} 20. Kh1 {[%clk 0:01:27.7]} 20... Qxd3 {[%clk
0:00:41.9]} 21. Nf3 {[%clk 0:01:25.3]} 21... Ne4 {[%clk 0:00:38.9]} 22. Ne5
{[%clk 0:01:20.4]} 22... Qxb3 {[%clk 0:00:37.7]} 23. Rf3 {[%clk 0:01:01.1]}
23... Qb6 {[%clk 0:00:28.3]} 24. Nd7 {[%clk 0:00:58.1]} 24... Nf2+ {[%clk
0:00:21.5]} 25. Rxf2 {[%clk 0:00:44.1]} 25... Qxf2 {[%clk 0:00:22.4]} 26. Nxf8
{[%clk 0:00:43.9]} 26... Kxf8 {[%clk 0:00:23.3]} 27. h3 {[%clk 0:00:39]} 27...
Qb6 {[%clk 0:00:18.2]} 28. Qa3 {[%clk 0:00:37.3]} 28... c5 {[%clk 0:00:17.3]}
29. Qd3 {[%clk 0:00:30.8]} 29... Qxd6 {[%clk 0:00:15.9]} 30. Qxh7 {[%clk
0:00:31]} 30... Qxf4 {[%clk 0:00:13.5]} 31. Qh8+ {[%clk 0:00:30.8]} 31... Ke7
{[%clk 0:00:13.9]} 32. Qb8 {[%clk 0:00:29.4]} 32... Qxb8 {[%clk 0:00:12.9]} 0-1